bitfinex-derivatives/quotes_ETHF0:USTF0_20241105
["timestamp","ask_amount","ask_price","bid_price","bid_amount"]
[1730843900846,3.62174,2416.0,2415.7,0.41397]
[1730843901640,3.2078,2416.0,2415.2,3.2078]
[1730843901852,0.41397,2415.8,2415.5,0.414]
[1730843902742,0.4383,2415.9,2415.6,0.41398]
[1730843902941,0.4383,2415.9,2415.2,3.2078]
[1730843903138,0.41396,2415.8,2415.6,0.41398]
[1730843903534,0.85225,2415.9,2415.3,0.41404]
[1730843903737,0.4383,2415.9,2415.2,3.2078]
[1730843903938,0.4383,2415.9,2415.5,0.414]
[1730843904143,0.41396,2415.8,2415.5,0.414]
[1730843904341,0.41396,2415.8,2415.6,0.41399]
[1730843905446,0.4383,2415.9,2415.2,3.2078]
[1730843905944,0.41399,2415.6,2415.4,0.41401]
[1730843906147,0.4383,2415.9,2415.2,3.2078]
[1730843906449,0.4383,2415.9,2415.5,0.414]
[1730843906450,0.41398,2415.7,2415.5,0.414]
[1730843907143,0.4383,2415.9,2415.5,0.414]
[1730843907446,0.41402,2415.5,2415.3,0.41403]
[1730843907651,0.41402,2415.5,2415.0,1.08203712]
[1730843907846,3.2078,2415.7,2414.9,3.06893712]
[1730843908248,3.2078,2415.7,2414.9,1.55593712]
[1730843908546,0.41408,2415.1,2414.9,0.888]
[1730843909147,4.1408,2415.0,2414.8,3.2078]
[1730843909346,4.1408,2414.9,2414.3,1.08203712]
[1730843909550,3.6508,2415.0,2414.2,6.70053712]
[1730843909748,3.6508,2415.0,2414.8,0.41412]
[1730843909950,4.0649,2415.0,2414.8,0.41412]
[1730843910247,3.6508,2415.0,2414.3,1.08203712]
[1730843910442,3.6508,2415.0,2414.6,0.41415]
[1730843910443,0.41413,2414.8,2414.6,0.41415]
[1730843910749,3.6508,2415.0,2414.2,5.18753712]
[1730843910948,3.6508,2415.0,2414.7,0.41414]
[1730843911138,4.1408,2414.9,2414.2,5.18753712]
[1730843911340,3.6508,2415.0,2414.2,4.1055]
[1730843911744,3.6508,2415.0,2414.8,0.41413]
[1730843911745,40.8,2414.9,2414.8,0.41413]
[1730843912043,3.2078,2415.0,2414.8,0.41413]
[1730843912252,3.2078,2415.0,2414.9,0.41411]
[1730843912440,3.2078,2415.3,2415.2,0.41405]
[1730843913039,0.9042,2415.5,2415.3,0.41403]
[1730843913040,1.31821,2415.5,2415.3,0.41403]
[1730843913244,1.31821,2415.5,2415.0,3.2078]
[1730843913245,0.41403,2415.4,2415.2,0.41406]
[1730843913437,0.469,2415.5,2415.0,3.2078]
[1730843913640,0.88302,2415.5,2415.2,0.41405]
[1730843913845,0.41403,2415.4,2415.2,0.41405]
[1730843914651,7.3478,2415.4,2414.8,0.8842]
[1730843914850,7.3478,2415.4,2415.1,0.41407]
[1730843914851,0.41405,2415.3,2415.1,0.41407]
[1730843915045,0.41403,2415.4,2415.2,0.41406]
[1730843915753,4.55404,2415.4,2415.1,0.41407]
[1730843916049,0.469,2415.5,2415.1,0.41407]
[1730843916250,0.41404,2415.3,2415.1,0.41407]
[1730843916645,0.41407,2415.2,2415.0,3.2078]
[1730843916848,3.2078,2415.4,2414.8,0.8842]
[1730843917053,3.2078,2415.4,2414.8,1.29833]
[1730843917351,3.2078,2415.4,2414.7,3.2078]
[1730843917352,1.46884,2415.3,2414.7,3.2078]
[1730843917555,0.41412,2414.9,2414.6,0.41416]
[1730843918050,3.2078,2415.1,2414.8,0.41412]
[1730843918051,0.4141,2415.0,2414.8,0.41412]
[1730843918248,3.2078,2415.1,2414.8,0.41412]
[1730843918455,0.41409,2415.0,2414.8,0.41412]
[1730843918656,3.62189,2415.1,2414.9,0.41411]
[1730843918859,0.41412,2414.9,2414.7,3.62194]
[1730843919246,0.4141,2415.0,2414.8,0.41411]
[1730843919446,0.4141,2415.0,2414.4,0.451]
[1730843919447,3.2078,2415.1,2414.4,3.6588]
[1730843919652,3.2078,2415.1,2414.8,0.41411]
[1730843919653,0.41409,2415.0,2414.8,0.41411]
[1730843919853,0.41409,2415.0,2414.8,0.41412]
[1730843921257,0.4337,2415.3,2414.4,3.6588]
[1730843921258,0.4337,2415.3,2414.7,3.2078]
[1730843921458,0.41408,2415.1,2414.9,0.4141]
[1730843922157,0.41408,2415.1,2414.4,3.6588]
[1730843922158,4.1408,2415.0,2414.4,3.6588]
[1730843922456,0.41416,2414.6,2414.5,0.41417]
[1730843922861,0.41413,2414.8,2414.4,3.6588]
[1730843923157,0.4557,2414.9,2414.5,0.41418]
[1730843923357,0.4557,2414.9,2414.4,3.6588]
[1730843923563,0.4557,2414.9,2414.6,0.41416]
[1730843923861,0.4557,2414.9,2414.4,3.2078]
[1730843924253,0.86982,2414.9,2414.5,0.41418]
[1730843924562,0.86982,2414.9,2414.4,3.2078]
[1730843924563,0.86982,2414.9,2414.4,3.62199]
[1730843924961,0.86982,2414.9,2414.5,0.41418]
[1730843925362,0.86982,2414.9,2414.4,3.62199]
[1730843926457,0.86982,2414.9,2414.4,3.2078]
[1730843926458,2.58523828,2414.8,2414.4,3.2078]
[1730843926667,6.23443828,2414.8,2414.4,3.2078]
[1730843926960,6.23443828,2414.8,2414.5,0.41418]
[1730843927158,3.6492,2414.8,2414.4,3.2078]
[1730843927360,3.6492,2414.8,2414.4,3.62199]
[1730843927557,3.6492,2414.8,2414.5,0.41418]
[1730843928364,3.6492,2414.8,2414.4,3.62199]
[1730843928660,3.2078,2414.8,2414.6,0.41416]
[1730843928856,3.2078,2414.8,2414.5,0.4583]
[1730843929057,3.2078,2414.8,2414.5,0.87247]
[1730843929260,3.2078,2414.8,2414.6,0.41416]
[1730843930365,3.2078,2414.8,2414.7,0.4439]
[1730843930860,0.41406,2415.2,2414.7,4.06584]
[1730843931059,0.4141,2415.0,2414.7,0.4439]
[1730843931255,2.58523828,2415.2,2414.7,0.4439]
[1730843931256,0.41409,2415.1,2414.7,0.4439]
[1730843931451,2.58523828,2415.2,2414.5,3.6661]
[1730843931452,5.79303828,2414.9,2414.5,3.6661]
[1730843931656,0.41413,2414.8,2414.5,3.6661]
[1730843931851,5.79303828,2414.9,2414.5,0.87248]
[1730843932261,5.79303828,2414.9,2414.5,0.87247]
[1730843932262,3.2078,2414.9,2414.5,0.87247]
[1730843932765,3.62191,2414.9,2414.5,0.87247]
[1730843933068,3.2078,2414.9,2414.5,0.87247]
[1730843933260,3.62192,2414.9,2414.5,0.4583]
[1730843933661,3.2078,2414.9,2414.6,0.41415]
[1730843934065,0.41409,2415.1,2414.6,0.41415]
[1730843934255,5.79303828,2415.2,2414.5,3.6661]
[1730843934454,6.20710828,2415.2,2414.7,0.41414]
[1730843934661,6.20710828,2415.2,2414.8,0.433]
[1730843934864,3.2078,2415.2,2414.8,0.433]
[1730843935672,3.62187,2415.2,2414.8,0.433]
[1730843935871,3.62187,2415.2,2414.8,0.84713]
[1730843935872,3.2078,2415.2,2414.8,0.84713]
[1730843936059,3.2078,2415.2,2414.8,0.433]
[1730843936060,3.62187,2415.2,2414.8,0.433]
[1730843936263,3.2078,2415.2,2414.8,0.84712]
[1730843937367,5.79303828,2414.9,2414.0,3.2078]
[1730843937574,3.2078,2414.6,2414.1,0.4552]
[1730843937869,40.8,2414.5,2414.1,0.86944]
[1730843938067,40.8,2414.5,2414.1,0.4552]
[1730843938271,40.8,2414.5,2414.2,0.41422]
[1730843938573,40.8,2414.5,2414.1,0.86944]
[1730843938770,40.8,2414.5,2414.2,0.41423]
[1730843939464,3.2078,2414.7,2414.3,0.4142]
[1730843939863,40.8,2414.7,2414.3,3.2078]
[1730843940064,3.62197,2414.6,2413.9,3.62207]
[1730843940375,3.62197,2414.6,2413.9,3.2078]
[1730843940376,3.2078,2414.6,2413.9,3.2078]
[1730843940573,3.2078,2414.6,2414.1,0.41425]
[1730843940778,40.8,2414.7,2414.3,0.4142]
[1730843940963,40.8,2414.7,2414.3,0.41421]
[1730843941167,40.8,2414.7,2414.2,3.6545]
[1730843941168,40.8,2414.7,2414.4,0.4142]
[1730843941367,40.8,2414.7,2414.3,0.41421]
[1730843942261,41.21415,2414.7,2414.2,0.4467]
[1730843943072,40.8,2414.7,2414.3,0.4142]
[1730843944375,40.8,2414.7,2414.2,0.4467]
[1730843944376,40.8,2414.7,2414.2,0.86092]
[1730843944566,40.8,2414.7,2414.2,0.4467]
[1730843944769,41.21416,2414.7,2414.2,0.86092]
[1730843944972,40.8,2414.7,2414.2,0.4467]
[1730843945364,40.8,2414.7,2414.3,0.41421]
[1730843945578,40.8,2414.7,2414.2,0.86092]
[1730843945771,3.62197,2414.6,2414.2,0.4467]
[1730843946166,3.2078,2414.6,2414.2,0.4467]
[1730843946368,0.41422,2414.3,2414.0,0.4512]
[1730843946573,2.58523828,2414.5,2413.9,3.2078]
[1730843946768,0.41427,2414.0,2413.9,3.2078]
[1730843947071,3.50803828,2414.2,2413.9,3.2078]
[1730843947472,0.4764,2414.2,2413.9,3.2078]
[1730843947774,0.4764,2414.2,2414.0,0.4547]
[1730843948570,0.4434,2414.3,2414.0,0.86896]
[1730843948975,0.4434,2414.3,2414.0,0.4547]
[1730843949386,0.4764,2414.4,2414.1,0.84644]
[1730843949581,0.4764,2414.4,2414.1,0.4322]
[1730843950269,0.4764,2414.4,2414.1,0.84645]
[1730843951687,0.4764,2414.4,2414.1,0.4322]
[1730843951887,0.89061,2414.4,2414.1,0.4322]
[1730843952192,0.41421,2414.3,2414.0,0.4547]
[1730843952684,0.41423,2414.2,2413.9,3.2078]
[1730843953090,0.4764,2414.4,2413.9,3.2078]
[1730843953490,3.2078,2414.3,2413.8,0.4439]
[1730843953882,0.4721,2414.2,2413.8,0.4439]
[1730843954383,0.4721,2414.2,2413.8,0.8742]
[1730843959786,0.4764,2414.4,2413.9,3.2078]
[1730843962494,0.4764,2414.4,2414.0,0.54069235]
[1730843962693,0.4764,2414.4,2413.9,4.28983712]
[1730843963279,0.4764,2414.4,2414.0,0.54074155]
[1730843963484,3.6747,2414.6,2413.9,4.28983712]
[1730843963685,3.6747,2414.6,2414.0,1.62279229]
[1730843963888,3.6747,2414.6,2413.9,4.28983712]
[1730843964086,3.6747,2414.6,2414.0,0.5407507]
[1730843964290,3.6747,2414.6,2413.9,4.28983712]
[1730843964587,3.6747,2414.6,2414.0,0.54079788]
[1730843964788,3.6747,2414.6,2413.9,4.28983712]
[1730843964988,3.6747,2414.6,2414.0,1.62283275]
[1730843965194,3.6747,2414.6,2414.1,0.54079563]
[1730843965396,3.6747,2414.6,2414.1,0.4591]
[1730843965987,41.2638,2414.7,2414.1,0.4591]
[1730843965988,0.4638,2414.7,2414.2,3.2078]
[1730843966297,0.4638,2414.7,2414.3,1.47831958]
[1730843966485,0.4638,2414.7,2414.3,0.9375]
[1730843966892,0.4638,2414.7,2414.2,4.28983712]
[1730843967087,0.4638,2414.7,2414.3,0.54087562]
[1730843967293,0.4638,2414.7,2414.2,3.2078]
[1730843967490,0.4638,2414.7,2414.3,0.54094401]
[1730843967794,0.4638,2414.7,2414.2,4.28983712]
[1730843968098,0.4638,2414.7,2414.3,0.54094486]
[1730843968296,0.4638,2414.7,2414.2,4.28983712]
[1730843968498,0.4638,2414.7,2414.3,0.54098131]
[1730843968802,0.4638,2414.7,2414.2,4.28983712]
[1730843969098,0.4638,2414.7,2414.3,0.54097036]
[1730843969099,2.58523828,2414.6,2414.3,0.54097036]
[1730843969301,2.58523828,2414.6,2414.2,4.28983712]
[1730843969597,2.58523828,2414.6,2414.3,0.54098556]
[1730843969801,2.58523828,2414.6,2414.2,4.28983712]
[1730843970100,2.58523828,2414.6,2414.3,0.54100036]
[1730843970298,2.58523828,2414.6,2414.4,0.4321]
[1730843971298,41.2743,2414.8,2414.4,0.4321]
[1730843972601,41.2743,2414.8,2414.5,0.4704]
[1730843974295,41.2743,2414.8,2414.5,0.9447]
[1730843975995,40.8,2414.8,2414.5,0.9447]
[1730843977197,2.1194266,2415.0,2414.5,4.1525]
[1730843977403,2.5929266,2415.2,2414.9,3.2078]
[1730843977606,0.4735,2415.2,2415.0,0.9066]
[1730843978198,3.2078,2415.3,2415.0,0.9066]
[1730843978395,3.0544266,2415.6,2415.0,1.3612]
[1730843978594,3.0544266,2415.6,2415.1,0.54076986]
[1730843978595,0.935,2415.6,2415.1,0.54076986]
[1730843978792,0.935,2415.6,2415.0,2.44323712]
[1730843979005,0.935,2415.6,2415.2,3.2078]
[1730843984007,40.8,2415.5,2415.2,3.2078]
[1730843988109,4.27183,2416.0,2415.2,3.62185]
[1730843988110,0.4349,2415.9,2415.2,3.62185]
[1730843988305,0.8886,2415.9,2415.2,3.62185]
[1730843988503,0.8886,2415.9,2415.2,3.2078]
[1730843988698,40.8,2415.8,2415.2,3.2078]
[1730843990304,0.8886,2415.9,2415.2,3.2078]
[1730843990702,0.8886,2415.9,2415.5,3.2078]
[1730843990914,41.6886,2415.9,2415.6,0.9005]
[1730843991118,40.8,2415.9,2415.6,1.334]
[1730843991408,0.9202,2416.1,2415.6,1.334]
[1730843991811,41.7202,2416.1,2415.6,1.334]
[1730843992512,3.62168,2416.3,2415.1,1.31505537]
[1730843992513,3.2078,2416.0,2415.1,1.31505537]
[1730843992712,4.5198,2416.0,2415.4,3.2078]
[1730843993017,40.8,2415.9,2415.4,3.2078]
[1730843993708,40.8,2415.9,2415.5,0.8922]
[1730843993904,0.096,2416.3,2415.8,5.79303828]
[1730843994108,3.2078,2416.4,2415.9,0.4348]
[1730843994412,3.2078,2416.4,2416.0,0.4574]
[1730843995505,40.8,2416.3,2416.0,0.4574]
[1730844001408,44.9392,2416.3,2415.5,3.2078]
[1730844001609,3.2078,2416.1,2415.5,3.2078]
[1730844001814,0.9181,2416.0,2415.5,3.2078]
[1730844002011,1.3845,2416.0,2415.5,3.2078]
[1730844003420,3.62177,2415.8,2415.1,3.2078]
[1730844003624,2.58523828,2415.9,2415.1,3.2078]
[1730844003816,1.3845,2416.0,2415.4,3.2078]
[1730844005221,2.58523828,2415.9,2415.4,3.2078]
[1730844005608,0.41398,2415.7,2415.4,3.2078]
[1730844006014,4.5717,2415.6,2415.2,3.2078]
[1730844006325,0.899,2415.5,2415.2,3.2078]
[1730844006933,5.039,2415.5,2415.2,3.2078]
[1730844007114,0.899,2415.5,2415.2,3.2078]
[1730844008328,0.899,2415.5,2415.1,0.4524]
[1730844010423,0.4317,2415.6,2415.1,0.4524]
[1730844014924,0.4564,2415.5,2415.1,0.4524]
[1730844015638,4.55404,2415.4,2414.9,3.2078]
[1730844015933,0.41404,2415.4,2414.9,3.2078]
[1730844016128,0.41407,2415.2,2414.9,3.2078]
[1730844016436,0.41407,2415.2,2414.1,3.2078]
[1730844016437,0.41412,2414.9,2414.1,3.2078]
[1730844016737,42.12894,2414.8,2414.1,3.6567]
[1730844018333,41.7148,2414.8,2414.1,3.6567]
[1730844018524,0.41416,2414.7,2414.1,3.6567]
[1730844018722,0.4444,2414.6,2414.1,3.6567]
[1730844019219,4.06637,2414.6,2414.1,3.2078]
[1730844019425,6.23743828,2414.6,2413.9,0.4423]
[1730844019936,0.41418,2414.5,2413.9,0.4423]
[1730844020232,6.23743828,2414.6,2413.9,0.4423]
[1730844020425,6.23743828,2414.6,2414.0,3.2078]
[1730844020426,3.6522,2414.6,2414.0,3.2078]
[1730844021623,3.6522,2414.6,2414.0,3.62205]
[1730844021826,3.2078,2414.6,2414.1,2.99947828]
[1730844022133,3.2078,2414.6,2414.1,2.58523828]
[1730844022431,3.2078,2414.6,2414.1,2.99947828]
[1730844022631,3.2078,2414.6,2414.2,0.4587]
[1730844023132,3.2078,2414.6,2414.3,0.4626]
[1730844024337,41.3653,2415.0,2414.3,3.6704]
[1730844024628,41.2693,2415.0,2414.3,3.6704]
[1730844025233,0.4693,2415.0,2414.3,4.08461]
[1730844025536,0.4693,2415.0,2414.3,3.6704]
[1730844025838,0.4693,2415.0,2414.3,4.0846]
[1730844027143,0.4693,2415.0,2414.4,3.2078]
[1730844027341,0.433,2415.1,2414.5,0.4515]
[1730844027632,3.2078,2415.2,2414.5,0.4515]
[1730844028436,3.2078,2415.2,2414.5,0.86567]
[1730844029031,3.2078,2415.2,2414.5,0.4515]
[1730844031835,3.62187,2415.2,2414.6,3.2078]
[1730844032039,4.06367,2415.2,2414.6,3.2078]
[1730844032932,4.06367,2415.2,2414.7,0.4361]
[1730844034141,0.85587,2415.2,2414.7,0.4361]
[1730844034347,4.06367,2415.2,2414.7,0.4361]
[1730844034938,3.6496,2415.2,2414.7,0.4361]
[1730844035138,0.4436,2415.3,2414.7,0.85023]
[1730844035438,0.4436,2415.3,2414.9,3.2078]
[1730844035637,0.4436,2415.3,2415.0,0.4715]
[1730844035838,44.0078,2415.5,2415.0,0.4715]
[1730844036038,44.0078,2415.5,2415.1,0.4432]
[1730844037043,3.2078,2415.5,2415.1,0.4432]
[1730844037940,41.2731,2415.6,2415.2,3.2078]
[1730844038147,0.4731,2415.6,2415.2,3.2078]
[1730844038438,3.2078,2415.8,2415.2,3.62185]
[1730844041845,3.2078,2415.8,2415.2,3.2078]
[1730844042043,3.2078,2415.8,2415.2,4.4278]
[1730844043543,3.2078,2415.9,2415.3,3.2078]
[1730844044644,3.2078,2415.9,2415.3,3.6713]
[1730844045435,40.8,2415.8,2415.3,3.6713]
[1730844047454,3.2078,2415.9,2415.3,3.6713]
[1730844047948,40.8,2415.8,2415.3,3.6713]
[1730844048452,40.8,2415.8,2415.3,6.25653828]
[1730844048755,0.9139,2416.0,2415.6,3.2078]
[1730844049550,0.9139,2416.0,2415.7,0.9176]
[1730844049758,46.3342266,2416.5,2415.9,3.2078]
[1730844049948,0.9116,2416.4,2415.9,3.2078]
[1730844054573,0.9116,2416.4,2415.8,2.07344]
[1730844054869,0.9116,2416.4,2415.9,3.2078]
[1730844056365,0.9116,2416.4,2415.8,1.6595]
[1730844056565,0.9116,2416.4,2415.9,3.2078]
[1730844060573,3.2078,2416.5,2415.9,5.79303828]
[1730844060775,3.2078,2416.5,2416.0,0.4667]
[1730844061168,3.2078,2416.5,2416.1,0.4293]
[1730844061370,3.2078,2416.5,2416.2,0.4363]
[1730844061871,0.5434,2416.9,2416.4,3.2078]
[1730844061872,0.096,2416.9,2416.4,3.2078]
[1730844062079,41.6899,2417.1,2416.4,3.2078]
[1730844062279,0.8899,2417.1,2416.4,3.2078]
[1730844062571,0.8899,2417.1,2416.5,0.4687]
[1730844062776,41.6899,2417.1,2416.5,0.4687]
[1730844062977,3.7512,2417.4,2416.7,3.2078]
[1730844062978,3.3038,2417.4,2416.7,3.2078]
[1730844063274,3.2078,2417.4,2416.8,0.4396]
[1730844063866,3.2078,2417.4,2416.8,3.02483828]
[1730844064072,1.4436,2417.7,2417.0,3.2078]
[1730844064073,4.6514,2417.7,2417.0,3.2078]
[1730844064379,4.5554,2417.7,2417.0,3.2078]
[1730844064577,4.5554,2417.7,2417.1,0.449]
[1730844064879,4.5554,2417.7,2417.1,3.03423828]
[1730844064880,0.8899,2417.7,2417.1,3.03423828]
[1730844066780,0.4365,2417.7,2417.1,3.03423828]
[1730844067083,0.4365,2417.7,2417.1,3.88716828]
[1730844067383,0.096,2418.0,2417.6,2.58523828]
[1730844067674,3.2078,2418.1,2417.7,3.6597]
[1730844067879,3.2078,2418.1,2417.7,4.1266]
[1730844068276,0.41354,2418.3,2417.7,4.1266]
[1730844068973,40.896,2418.4,2417.7,3.2078]
[1730844069281,40.8,2418.4,2417.7,3.2078]
[1730844069476,40.8,2418.4,2417.8,0.8994]
[1730844070778,4.1093,2418.5,2417.8,3.48463828]
[1730844070779,0.9015,2418.5,2417.8,3.48463828]
[1730844070978,0.9015,2418.5,2418.0,3.2078]
[1730844071182,40.8,2418.6,2418.0,3.2078]
[1730844071382,40.8,2418.6,2418.2,2.58523828]
[1730844071576,4.1114,2418.9,2418.3,3.2078]
[1730844071779,4.52483,2418.9,2418.3,3.2078]
[1730844071984,4.1114,2418.9,2418.3,3.2078]
[1730844072177,4.1114,2418.9,2418.3,3.6541]
[1730844072688,4.1114,2418.9,2418.4,3.05753828]
[1730844073373,3.2078,2418.9,2418.4,3.05753828]
[1730844074291,3.2078,2418.9,2418.7,2.58523828]
[1730844075377,3.62123,2418.9,2418.3,5.79303828]
[1730844075574,40.8,2418.8,2418.3,5.79303828]
[1730844075775,40.8,2418.8,2418.3,6.24843828]
[1730844077084,40.8,2418.8,2418.4,0.4615]
[1730844077879,3.2078,2418.9,2418.5,2.58523828]
[1730844078991,40.8,2418.8,2418.5,2.58523828]
[1730844079285,0.207,2419.3,2418.7,3.2078]
[1730844079490,4.07502,2419.5,2418.8,3.05723828]
[1730844079788,4.07502,2419.5,2418.8,4.27023828]
[1730844079789,40.8,2419.4,2418.8,4.27023828]
[1730844080178,3.2078,2419.5,2418.8,4.27023828]
[1730844080377,3.2078,2419.5,2419.0,3.2078]
[1730844080589,3.2078,2419.5,2419.1,0.4412]
[1730844080981,41.7068,2419.6,2419.2,2.58523828]
[1730844082082,0.6542,2420.0,2419.1,0.4412]
[1730844082083,0.207,2420.0,2419.5,2.58523828]
[1730844082384,0.207,2420.0,2419.3,9.92663828]
[1730844082385,0.207,2420.3,2419.9,5.79303828]
[1730844082582,0.41317,2420.5,2419.9,5.79303828]
[1730844082879,0.41317,2420.5,2419.7,0.4412]
[1730844082880,3.2078,2420.2,2419.5,3.2078]
[1730844083287,0.4404,2420.1,2419.5,3.2078]
[1730844083481,0.85785,2420.0,2419.5,3.2078]
[1730844083682,0.41328,2419.8,2419.4,2.58523828]
[1730844083887,0.8885,2420.0,2419.4,2.58523828]
[1730844084283,0.41326,2419.9,2419.4,2.58523828]
[1730844085495,40.8,2419.8,2419.4,2.58523828]
[1730844086087,40.8,2419.8,2419.5,3.2078]
[1730844086284,0.4404,2420.1,2419.7,2.58523828]
[1730844086491,3.2078,2420.2,2419.9,2.58523828]
[1730844086989,3.2078,2420.2,2419.9,3.05043828]
[1730844087393,0.9193,2420.4,2419.9,3.05043828]
[1730844087890,41.7193,2420.4,2419.9,3.05043828]
[1730844088592,41.2754,2420.4,2419.9,3.05043828]
[1730844089387,0.4754,2420.4,2419.9,3.05043828]
[1730844089784,0.9262,2420.4,2419.9,3.05043828]
[1730844090089,42.13939,2420.4,2419.9,2.58523828]
[1730844090394,41.7262,2420.4,2419.8,3.2078]
[1730844090594,0.41321,2420.2,2419.8,3.2078]
[1730844090894,0.41321,2420.2,2419.6,4.24113828]
[1730844091090,3.2078,2420.3,2419.6,3.02913828]
[1730844091288,0.41324,2420.1,2419.6,3.02913828]
[1730844091493,0.4673,2420.0,2419.6,3.02913828]
[1730844091693,0.4673,2420.0,2419.6,2.58523828]
[1730844091893,0.87306,2419.9,2419.6,2.58523828]
[1730844092102,0.4598,2419.9,2419.6,2.58523828]
[1730844093189,0.87306,2419.9,2419.6,2.58523828]
[1730844093397,0.4598,2419.9,2419.6,2.58523828]
[1730844093588,0.4598,2419.9,2419.5,3.2078]
[1730844093786,1.31616,2419.9,2419.2,0.4435]
[1730844094187,0.41329,2419.8,2419.2,0.4435]
[1730844095896,0.41331,2419.6,2419.2,0.4435]
[1730844097298,0.41334,2419.5,2419.0,3.6569]
[1730844097494,0.4673,2419.4,2419.0,3.6569]
[1730844097793,0.9393,2419.4,2419.0,3.6569]
[1730844101699,3.6211,2419.7,2419.1,2.58523828]
[1730844101700,3.2078,2419.7,2419.1,2.58523828]
[1730844101904,4.1123,2420.0,2419.5,2.58523828]
[1730844102398,0.41326,2419.9,2419.6,0.9172]
[1730844102696,0.41326,2419.9,2419.3,3.2078]
[1730844102898,4.1123,2420.0,2419.3,3.2078]
[1730844104794,4.1123,2420.0,2419.5,2.58523828]
[1730844104994,4.1123,2420.0,2419.6,0.4472]
[1730844105205,4.1123,2420.0,2419.6,0.9029]
[1730844105704,3.2078,2420.0,2419.8,2.58523828]
[1730844106009,0.8549,2420.3,2419.8,2.58523828]
[1730844106010,4.9885,2420.3,2419.8,2.58523828]
[1730844106692,0.41322,2420.1,2419.6,4.1107]
[1730844106900,0.41326,2419.9,2419.6,4.1107]
[1730844107207,0.41329,2419.7,2419.3,5.79303828]
[1730844107395,0.4617,2419.6,2419.3,5.79303828]
[1730844107597,0.9258,2419.6,2419.3,5.79303828]
[1730844111308,0.9258,2419.6,2419.4,0.4498]
[1730844115305,0.9258,2419.6,2419.5,0.539224]
[1730844116308,4.574,2419.6,2419.1,1.53773712]
[1730844116506,0.41332,2419.5,2419.1,1.53773712]
[1730844116808,0.41332,2419.5,2419.1,0.4557]
[1730844122216,2.1194266,2419.8,2419.3,2.58523828]
[1730844122407,3.6554,2419.9,2419.5,2.58523828]
[1730844122610,0.41327,2419.8,2419.6,0.8873]
[1730844122811,0.41327,2419.8,2419.3,2.58523828]
[1730844123522,0.41335,2419.4,2419.1,1.98383712]
[1730844123726,0.41335,2419.4,2419.1,0.9018]
[1730844124516,2.1194266,2419.5,2419.1,0.9018]
[1730844124721,5.7405366,2419.6,2419.1,0.9018]
[1730844125015,5.3272266,2419.6,2419.3,2.58523828]
[1730844125218,3.62111,2419.6,2419.3,2.58523828]
[1730844125411,0.41335,2419.4,2419.1,0.9018]
[1730844126120,3.0031266,2419.5,2419.1,0.9018]
[1730844130617,7.1367266,2419.5,2419.0,3.2078]
[1730844130826,0.41338,2419.2,2419.0,3.2078]
[1730844131022,2.5328066,2419.2,2419.0,3.2078]
[1730844131223,40.8,2419.1,2419.0,3.2078]
[1730844131820,41.2392,2419.1,2419.0,3.2078]
[1730844132023,41.2392,2419.1,2418.8,0.9201]
[1730844132024,0.41341,2419.0,2418.5,2.58523828]
[1730844132234,4.08491,2419.0,2418.5,3.52933828]
[1730844132828,4.54251,2419.0,2418.5,3.52933828]
[1730844133026,4.54251,2419.0,2418.5,0.9441]
[1730844133027,0.41344,2418.8,2418.5,0.9441]
[1730844133331,0.41344,2418.8,2418.5,0.4768]
[1730844133524,0.4305,2418.7,2418.4,3.2078]
[1730844133732,0.41348,2418.6,2418.4,3.2078]
[1730844133925,3.62128,2418.6,2418.3,2.58523828]
[1730844134126,3.2078,2418.6,2418.2,0.4673]
[1730844134328,0.41351,2418.4,2418.2,0.4673]
[1730844134526,0.4637,2418.5,2418.2,0.4673]
[1730844136131,0.41351,2418.4,2418.2,0.4673]
[1730844136330,0.41351,2418.4,2418.1,0.4768]
[1730844136933,0.447,2418.3,2418.1,0.4768]
[1730844138026,0.447,2418.3,2417.8,0.4575]
[1730844138027,4.54875,2418.2,2417.8,0.4575]
[1730844138234,0.41355,2418.2,2417.8,0.4575]
[1730844140429,3.62138,2418.0,2417.1,1.93864201]
[1730844140627,3.62138,2418.0,2417.3,0.4465]
[1730844140628,0.41362,2417.8,2417.3,0.4465]
[1730844140827,0.9313,2417.9,2417.3,0.4465]
[1730844140828,4.1391,2417.9,2417.3,0.4465]
[1730844141131,40.8,2417.8,2417.3,0.4465]
[1730844142032,41.21362,2417.8,2417.3,0.4465]
[1730844142229,40.8,2417.8,2417.2,0.4369]
[1730844142436,0.41365,2417.6,2417.2,0.4369]
[1730844143641,0.4342,2417.5,2417.2,0.4369]
[1730844144843,3.2078,2417.7,2417.3,2.58523828]
[1730844145038,3.2078,2417.7,2417.4,0.4382]
[1730844145340,3.2078,2417.7,2417.3,0.4345]
[1730844145539,3.2078,2417.7,2417.3,3.01973828]
[1730844148739,2.1194266,2418.2,2417.6,2.58523828]
[1730844148935,2.1194266,2418.2,2417.7,1.346]
[1730844150140,4.1161,2418.3,2417.7,1.346]
[1730844150345,3.6602,2418.3,2417.7,1.346]
[1730844150844,3.6602,2418.3,2417.8,2.58523828]
[1730844151442,3.2078,2418.3,2417.8,2.58523828]
[1730844153059,3.2078,2418.3,2417.7,1.346]
[1730844154750,3.2078,2418.3,2417.8,2.58523828]
[1730844155151,0.6455,2418.6,2418.1,2.58523828]
[1730844155350,0.4385,2418.6,2418.2,1.3345]
[1730844155752,41.2385,2418.6,2418.2,1.3345]
[1730844155950,3.2078,2418.8,2418.2,1.3345]
[1730844156153,3.2078,2418.8,2418.3,2.58523828]